[Event "5th Sharjah Masters 2022"]
[Site "Sharjah"]
[Date "2022.05.21"]
[Round "1.24"]
[White "Assaubayeva, Bibisara"]
[Black "Ponkratov, Pavel"]
[Result "1/2-1/2"]
[ECO "D43"]
[WhiteElo "2439"]
[BlackElo "2624"]
[Annotator "TA"]
[PlyCount "92"]
[EventDate "2022.05.21"]
[EventType "swiss"]
[EventCountry "UAE"]
[SourceTitle "playchess.com"]
[Source "ChessBase"]
[SourceQuality "1"]
[TimeControl "5400+30"]

{[%evp 24,92,18,26,20,-20,0,-57,-51,-50,-6,-14,-12,-25,0,0,-8,0,0,-14,-12,-9,0,0,-12,-22,-2,-3,-6,-7,0,-21,-16,-16,-16,-39,-15,-19,0,-33,-12,-10,0,0,0,0,0,0,0,0,0,0,0,0,0,0,0,0,0,0,127,0,0,0,0,0,0,0,0,0,0]} 1. d4 {[%emt 0:00:03]} Nf6 {[%emt 0:00:07]} 2. c4 {[%emt 0:00:04]} e6 {[%emt 0:00:03]} 3. Nf3 {[%emt 0:00:08]} d5 {[%emt 0:00:04]} 4. Nc3 {[%emt 0:00:09]} c6 {[%emt 0:00:05]} 5. Bg5 {[%emt 0:01:28]} h6 {[%emt 0:00:05]} 6. Bxf6 {[%emt 0:01:16]} Qxf6 {[%emt 0:00:05]} 7. e3 {[%emt 0:04:51][%cal Be2e3,Be3e4,Be4e5][%mdl 32]} Nd7 {[%emt 0:00:17]} 8. Bd3 {[%emt 0:01:57]} dxc4 {[%emt 0:00:06]} 9. Bxc4 {[%emt 0:00:10]} g6 {[%emt 0:00:03]} 10. O-O {[%emt 0:01:01]} Bg7 {[%emt 0:00:04]} 11. e4 {[%emt 0:06:09]} O-O {[%emt 0:00:06]} 12. e5 {[%emt 0:10:28]} Qe7 {[%emt 0:00:22]} 13. Re1 {[%emt 0:00:39] 13.Qe2 deserves study.} Rd8 {[%emt 0:00:05] D43: Semi-Slav: 5 Bg5 h6.} 14. Qe2 {[%emt 0:02:27]} b5 $1 {[%emt 0:08:20]} 15. Bb3 {[%emt 0:05:25]} (15. Bd3 $11) 15... Bb7 $15 {[%emt 0:08:47] Black is slightly better.} 16. Rad1 {[%emt 0:21:04]} a6 {[%emt 0:09:00]} 17. Bc2 {[%emt 0:06:26] [#]} c5 $146 {[%emt 0:07:02] [#] And now ...Bxf3 would win.} ({Predecessor:} 17... Rac8 18. Be4 Nf8 19. h4 c5 20. Bxb7 Qxb7 21. Ne4 cxd4 22. Nd6 Rxd6 23. exd6 {½-½ (33) Ribli,Z (2562)-Pavasovic,D (2571) Gostovanja 2010}) 18. d5 {[%emt 0:05:23]} exd5 {[%emt 0:00:09]} (18... Qe8 $5 {[%cal Re6d5]}) 19. Nxd5 {[%emt 0:00:22]} Bxd5 {[%emt 0:00:05]} 20. Rxd5 {[%emt 0:00:10]} Nf8 {[%emt 0:00:14][%cal Bd7f8,Bf8e6,Be6c7][%mdl 32]} 21. Red1 {[%emt 0:03:54]} Rxd5 {[%emt 0:03:58]} 22. Rxd5 {[%emt 0:00:02]} Re8 {[%emt 0:00:57]} 23. a4 {[%emt 0:04:42]} Ne6 {[%emt 0:11:40] [#] Threatens to win with ...Nf4.} 24. Qe3 {[%emt 0:12:31] Prevents Nf4.} (24. axb5 $2 Nf4 25. Qe4 Nxd5 26. Qxd5 axb5 $19) 24... c4 {[%emt 0:06:24]} 25. axb5 {[%emt 0:04:19]} Nc7 {[%emt 0:00:06][%csl LRb5,LRd5]} 26. Rd1 {[%emt 0:00:53] Black must now prevent b6.} axb5 {[%emt 0:00:07][%cal Rg7e5]} 27. Be4 {[%emt 0:02:25]} Rd8 {[%emt 0:05:19]} (27... Bxe5 28. Bc6 Bxb2 29. Bxe8 Qxe8 30. Qxe8+ Nxe8 31. Rd8 $14) 28. Rxd8+ {[%emt 0:00:15]} Qxd8 {[%emt 0:00:04]} 29. h4 {[%emt 0:00:32]} Ne6 {[%emt 0:00:29]} 30. g3 {[%emt 0:01:29]} Bf8 {[%emt 0:11:06]} 31. h5 {[%emt 0:02:52]} g5 {[%emt 0:00:08]} 32. Bf5 {[%emt 0:01:26]} Qd5 {[%emt 0:03:27]} 33. Bxe6 {[%emt 0:01:02]} fxe6 $11 {[%emt 0:01:14][%mdl 4096] Endgame KQB-KQN} 34. Nh2 {[%emt 0:00:46]} b4 {[%emt 0:04:00][%cal Bb5b4,Bb4b3][%mdl 32]} 35. Qe2 {[%emt 0:00:09]} Bc5 {[%emt 0:15:31]} 36. Ng4 {[%emt 0:00:35] Strongly threatening Nf6+.} Kg7 {[%emt 0:00:05]} 37. Qc2 {[%emt 0:00:51] Hoping for Qg6+.} Qd3 {[%emt 0:00:56] Against Qg6+} 38. Qxd3 {[%emt 0:00:05]} cxd3 {[%emt 0:00:04] KB-KN} 39. Kf1 {[%emt 0:00:05] aiming for b3.} b3 $1 {[%emt 0:00:06]} ({Much less strong is} 39... Bd4 40. b3 $16) 40. Ke1 {[%emt 0:00:11]} Bb4+ {[%emt 0:03:50]} 41. Kd1 {[%emt 0:00:04]} Ba5 {[%emt 0:00:27]} (41... Bc3 $11 {keeps the balance.}) 42. f3 {[%emt 0:01:47]} ({Only move:} 42. Ne3 $16) 42... Bc3 {[%emt 0:01:57] The position is equal.} 43. Kc1 {[%emt 0:00:24]} ({Wrong is} 43. bxc3 $2 b2 44. Kd2 b1=Q $19) 43... Be1 {[%emt 0:00:05]} 44. Kd1 {[%emt 0:00:22]} Bc3 {[%emt 0:00:09]} 45. Kc1 {[%emt 0:00:04]} ({Not} 45. bxc3 $2 b2 46. Kd2 b1=Q $19) 45... Be1 {[%emt 0:00:04]} 46. Kd1 {[%emt 0:00:03]} Bc3 {[%emt 0:06:08] Weighted Error Value: White=0.11 (very precise) /Black=0.12 (very precise)} 1/2-1/2

[Event "5th Sharjah Masters 2022"]
[Site "Sharjah"]
[Date "2022.05.21"]
[Round "1.25"]
[White "Ivic, Velimir"]
[Black "Baenziger, Fabian"]
[Result "1/2-1/2"]
[ECO "C84"]
[WhiteElo "2623"]
[BlackElo "2430"]
[Annotator "TA"]
[PlyCount "142"]
[EventDate "2022.05.21"]
[EventType "swiss"]
[EventCountry "UAE"]
[SourceTitle "playchess.com"]
[Source "ChessBase"]
[SourceQuality "1"]
[TimeControl "5400+30"]

{[%evp 20,142,19,22,22,16,34,2,0,0,12,-5,19,0,0,0,12,0,0,0,0,0,17,0,0,0,0,0,0,0,0,0,-5,0,0,0,0,0,0,0,29,-61,-75,-75,-65,-104,-15,-64,-62,-60,-18,-37,-39,-50,-47,-70,-12,-173,-178,-175,-122,-120,-114,-112,-112,-112,-116,-223,-124,-120,0,-219,-162,-138,-62,-62,-62,-104,-104,-104,-104,-104,-104,-104,-62,-62,-62,-62,-62,-62,-62,-62,-62,-62,-62,-62,-62,-62,-62,-62,-52,-52,-52,-52,-52,-52,-52,-52,-52,-52,-52,-52,-52,-52,-52,-52,-52,-52,-23,-23,-8,-8,-8,-8,0]} 1. e4 {[%emt 0:00:11]} e5 {[%emt 0:00:07]} 2. Nf3 {[%emt 0:00:20]} Nc6 {[%emt 0:00:06]} 3. Bb5 {[%emt 0:00:28]} a6 {[%emt 0:00:13]} 4. Ba4 {[%emt 0:00:06]} Nf6 {[%emt 0:00:21]} 5. O-O {[%emt 0:00:34]} Be7 {[%emt 0:00:23]} 6. d3 {[%emt 0:02:25]} d6 {[%emt 0:00:42]} 7. c3 {[%emt 0:01:14]} O-O {[%emt 0:00:18]} 8. Nbd2 {[%emt 0:00:42]} Re8 {[%emt 0:02:06]} 9. Re1 {[%emt 0:01:23]} Bf8 {[%emt 0:00:07]} 10. Nf1 {[%emt 0:01:10]} h6 {[%emt 0:01:52]} 11. h3 {[%emt 0:03:41]} b5 {[%emt 0:05:16] C84: Closed Ruy Lopez: Unusual White 6th moves.} 12. Bc2 {[%emt 0:00:53]} d5 {[%emt 0:01:44]} 13. Qe2 {[%emt 0:02:38]} Be6 {[%emt 0:06:29]} 14. Ng3 {[%emt 0:05:40]} d4 {[%emt 0:01:45]} 15. Bb3 {[%emt 0:07:51]} g6 {[%emt 0:16:09] [#]} 16. Bd2 $146 {[%emt 0:16:31]} ({Predecessor:} 16. Qc2 Bxb3 17. axb3 Re6 18. Ne2 Nxe4 19. dxe4 d3 20. Qd1 dxe2 21. Qxe2 Bg7 22. Be3 f5 23. exf5 gxf5 {½-½ (42) Novak,T (1977)-Gabric,G (2252) Novi Sad 2017}) 16... Bxb3 {[%emt 0:11:58]} 17. axb3 {[%emt 0:00:06]} Qd7 {[%emt 0:00:11]} 18. cxd4 {[%emt 0:13:49]} Nxd4 {[%emt 0:01:47]} 19. Nxd4 {[%emt 0:00:10]} Qxd4 {[%emt 0:00:14]} 20. Be3 {[%emt 0:02:45]} Qd7 {[%emt 0:06:52]} 21. Rac1 {[%emt 0:01:48]} Re6 {[%emt 0:17:44]} 22. Red1 {[%emt 0:02:21]} Rd8 {[%emt 0:12:10]} 23. b4 {[%emt 0:11:20]} Rc6 {[%emt 0:06:51]} 24. Qd2 {[%emt 0:07:58]} h5 {[%emt 0:00:45]} 25. Bg5 {[%emt 0:01:24]} Be7 {[%emt 0:04:16]} 26. Rxc6 {[%emt 0:09:22]} Qxc6 {[%emt 0:00:04]} 27. f4 {[%emt 0:00:49]} exf4 {[%emt 0:02:16]} 28. Qxf4 {[%emt 0:00:10]} Qe6 {[%emt 0:01:04]} 29. d4 {[%emt 0:01:48] Threatens to win with d5.} Ne8 {[%emt 0:00:36] And now ...f6 would win.} 30. d5 {[%emt 0:05:01]} (30. Bxe7 $11 Qxe7 31. e5) 30... Bxg5 $15 {[%emt 0:00:22]} 31. Qxg5 {[%emt 0:00:02]} Qf6 {[%emt 0:00:06]} 32. Qe3 {[%emt 0:01:05] [#]} Qe5 {[%emt 0:00:23]} (32... Nd6 $1 $17 {Hoping for ...Re8.} 33. Re1 Qe5) 33. Ne2 {[%emt 0:00:32]} (33. Qc3 $11 {is more appropriate.} Qxc3 34. bxc3) 33... Nd6 {[%emt 0:00:45]} 34. Nc3 {[%emt 0:00:16]} Re8 {[%emt 0:00:30][%cal Rd6e4]} 35. Re1 {[%emt 0:00:24]} Nc4 {[%emt 0:00:31][%csl LRb2,LRe3]} 36. Qf2 {[%emt 0:00:19]} Kg7 {[%emt 0:00:31]} 37. Kh1 {[%emt 0:00:56]} Re7 {[%emt 0:00:20]} (37... f5 $15) 38. Rf1 $2 {[%emt 0:00:45] [#]} (38. Ra1 $11) 38... Nd6 $1 $19 {[%emt 0:00:28]} 39. Qa7 {[%emt 0:00:30]} Nxe4 {[%emt 0:00:41]} (39... f5 $19 40. exf5 Nxf5) 40. Nxe4 $17 {[%emt 0:00:04]} Qxe4 {[%emt 0:00:03]} 41. Qxa6 {[%emt 0:00:17]} Qxb4 $19 {[%emt 0:00:34][%mdl 4096] Endgame KQR-KQR} 42. Qf6+ {[%emt 0:00:53]} Kg8 {[%emt 0:00:04]} 43. Qf2 {[%emt 0:00:38]} (43. Kh2 $17) 43... Qc4 {[%emt 0:01:02]} (43... Qd6 $19 44. Rd1 Re4) 44. Qf6 $17 {[%emt 0:00:15]} Qb4 {[%emt 0:00:34]} (44... Rd7 $2 45. Re1 Qc5 46. Re8+ Qf8 47. Rxf8+ $18) (44... Qc5 $17 45. b3 Qd6 46. Qxd6 cxd6) 45. Qf2 $1 $19 {[%emt 0:00:13]} Qe4 {[%emt 0:00:29] Inhibits Qc2.} 46. Qc5 {[%emt 0:00:42]} Qc4 {[%emt 0:01:06]} (46... Qd3 $17 47. Ra1 Re8) 47. Qxc4 $15 {[%emt 0:00:35]} bxc4 {[%emt 0:00:04] KR-KR} 48. Rf4 {[%emt 0:00:04]} Re1+ {[%emt 0:00:29]} 49. Kh2 {[%emt 0:00:01]} Rc1 {[%emt 0:00:05]} 50. Rf6 {[%emt 0:00:46]} Rc2 {[%emt 0:00:38]} 51. Rc6 {[%emt 0:00:09]} Rxb2 {[%emt 0:00:04]} 52. Rxc7 {[%emt 0:00:12]} Rd2 {[%emt 0:00:05]} 53. Rxc4 {[%emt 0:00:04]} Rxd5 {[%emt 0:00:06]} 54. h4 {[%emt 0:02:00]} Rd2 {[%emt 0:00:57]} 55. Kg3 {[%emt 0:00:11]} Kg7 {[%emt 0:00:12]} 56. Kf3 {[%emt 0:00:11]} Rd3+ {[%emt 0:00:19]} 57. Kf2 {[%emt 0:00:24]} Kf6 {[%emt 0:00:16]} 58. Rf4+ {[%emt 0:00:25]} Ke6 {[%emt 0:00:04]} 59. g3 {[%emt 0:00:20]} f6 {[%emt 0:00:42]} 60. Ra4 {[%emt 0:00:41]} Ke5 {[%emt 0:00:30]} 61. Ra6 {[%emt 0:00:39]} Rd6 {[%emt 0:01:30]} 62. Ra3 {[%emt 0:00:39]} Ke4 {[%emt 0:00:42]} 63. Re3+ {[%emt 0:00:27]} Kf5 {[%emt 0:00:56] Strongly threatening ...Kg4.} 64. Kf3 {[%emt 0:00:04]} Rd4 {[%emt 0:00:19]} 65. Ra3 {[%emt 0:00:14]} Re4 {[%emt 0:00:07]} 66. Ra5+ {[%emt 0:00:42]} Re5 {[%emt 0:00:08]} 67. Ra3 {[%emt 0:00:48]} Rc5 {[%emt 0:00:40]} 68. Rb3 {[%emt 0:00:35]} g5 {[%emt 0:00:39]} 69. hxg5 {[%emt 0:00:04]} fxg5 {[%emt 0:00:03]} 70. g4+ {[%emt 0:00:24]} hxg4+ {[%emt 0:00:06]} 71. Kg3 {[%emt 0:00:02]} Ke5 {[%emt 0:03:24] And White is the lucky defender.  Weighted Error Value: White=0.16 (very precise) /Black=0.15 (very precise)} 1/2-1/2

[Event "5th Sharjah Masters 2022"]
[Site "Sharjah"]
[Date "2022.05.21"]
[Round "1.26"]
[White "Haznedaroglu, Kivanc"]
[Black "Indjic, Aleksandar"]
[Result "0-1"]
[ECO "A46"]
[WhiteElo "2425"]
[BlackElo "2621"]
[Annotator "TA"]
[PlyCount "40"]
[EventDate "2022.05.21"]
[EventType "swiss"]
[EventCountry "UAE"]
[SourceTitle "playchess.com"]
[Source "ChessBase"]
[SourceQuality "1"]
[TimeControl "5400+30"]

{[%evp 9,40,3,10,-9,6,0,0,0,14,9,12,12,24,0,0,0,0,1,0,-10,-8,0,0,0,0,-25,-22,-27,0,0,57,56,60]} 1. d4 {[%emt 0:00:03]} Nf6 {[%emt 0:00:44]} 2. Nf3 {[%emt 0:00:18]} e6 {[%emt 0:00:48]} 3. g3 {[%emt 0:00:10]} d5 {[%emt 0:02:44]} 4. Bg2 {[%emt 0:00:15]} b5 {[%emt 0:01:01]} 5. O-O {[%emt 0:03:06]} Nbd7 {[%emt 0:02:37]} 6. Bg5 {[%emt 0:07:24] A46: 1 d4 Nf6 2 Nf3 e6: Torre, London and Colle Systems.} Be7 {[%emt 0:11:57]} 7. c3 {[%emt 0:04:31]} Bb7 {[%emt 0:07:43]} 8. a4 {[%emt 0:03:08] The position is equal.} a6 {[%emt 0:00:21]} 9. Nbd2 {[%emt 0:00:52][%cal Bb1d2,Bd2f3,Bf3e5][%mdl 32]} c5 {[%emt 0:00:40] Inhibits b4.} 10. axb5 {[%emt 0:08:03]} axb5 {[%emt 0:00:43]} 11. dxc5 {[%emt 0:01:53]} Nxc5 {[%emt 0:00:39]} 12. Nd4 {[%emt 0:05:41]} Qb6 {[%emt 0:00:40]} 13. Rxa8+ {[%emt 0:13:06]} Bxa8 {[%emt 0:00:26] [#]} 14. N2f3 $146 {[%emt 0:00:18]} ({Predecessor:} 14. e3 O-O 15. Qe2 b4 16. c4 h6 17. Bxf6 Bxf6 18. cxd5 exd5 19. N2b3 Ne4 20. Ra1 {½-½ (38) Kovacevic,B (2497)-Lenic,L (2657) Slovenia 2018}) 14... h6 {[%emt 0:04:16]} 15. Be3 {[%emt 0:02:12]} Ng4 {[%emt 0:00:39]} 16. Bd2 {[%emt 0:00:12]} O-O {[%emt 0:00:34][%cal Ob5b4]} 17. h3 {[%emt 0:01:53]} (17. Bh3 $5 {[%cal Rh3g4]} h5 18. Bxg4 hxg4 19. Ne5 $11) 17... Nf6 {[%emt 0:00:07]} 18. Be3 {[%emt 0:04:15]} Nfe4 {[%emt 0:13:41]} 19. Ne5 {[%emt 0:07:12]} Bg5 {[%emt 0:49:40]} (19... Qc7 $11 20. Nd3 Bc6) 20. Bxg5 $14 {[%emt 0:08:15]} hxg5 {[%emt 0:00:00][%mdl 32768] Weighted Error Value: White=0.05 (flawless) /Black=0.13 (very precise) . Loss on time!?} 0-1

[Event "5th Sharjah Masters 2022"]
[Site "Sharjah"]
[Date "2022.05.21"]
[Round "1.27"]
[White "Sadhwani, Raunak"]
[Black "Dimakiling, Oliver"]
[Result "1-0"]
[ECO "D94"]
[WhiteElo "2619"]
[BlackElo "2420"]
[Annotator "TA"]
[PlyCount "53"]
[EventDate "2022.05.21"]
[EventType "swiss"]
[EventCountry "UAE"]
[SourceTitle "playchess.com"]
[Source "ChessBase"]
[SourceQuality "1"]
[TimeControl "5400+30"]

{[%evp 14,53,29,18,31,15,25,13,18,12,25,9,11,8,30,16,35,27,43,43,47,48,54,16,62,53,239,228,224,225,172,218,442,416,826,822,884,849,830,847,1019,852]} 1. c4 {[%emt 0:00:03]} c6 {[%emt 0:00:13]} 2. Nf3 {[%emt 0:00:32]} Nf6 {[%emt 0:00:17]} 3. d4 {[%emt 0:00:30]} d5 {[%emt 0:00:26]} 4. e3 {[%emt 0:00:04]} g6 {[%emt 0:00:34]} 5. Nc3 {[%emt 0:00:40]} Bg7 {[%emt 0:00:17]} 6. Be2 {[%emt 0:00:08]} O-O {[%emt 0:00:16]} 7. O-O {[%emt 0:00:07]} b6 {[%emt 0:01:32] Recently 7...a6 got a lot of attention.} 8. b3 {[%emt 0:02:35]} Bb7 {[%emt 0:00:54] D94: Grünfeld: 4 Nf3 Bg7 5 e3.} 9. Bb2 {[%emt 0:00:37]} e6 {[%emt 0:02:36]} 10. Qc2 {[%emt 0:02:27]} Nbd7 {[%emt 0:00:30] The position is equal.} 11. Rfd1 {[%emt 0:00:24]} Qc7 {[%emt 0:06:02] [#]} 12. a4 $146 {[%emt 0:00:41][%cal Oa4a5]} ({Predecessor:} 12. cxd5 exd5 13. b4 Rac8 14. a4 c5 15. Nb5 Qb8 16. dxc5 bxc5 17. bxc5 a6 18. Bxf6 Bxf6 {0-1 (60) Larsen,B (2580)-Petursson,M (2530) Holstebro 1989}) 12... a5 {[%emt 0:05:11]} 13. Rac1 {[%emt 0:00:34][%cal Of3e5]} Rfc8 {[%emt 0:06:48]} 14. Qb1 {[%emt 0:04:42]} Qb8 {[%emt 0:02:35]} 15. h3 {[%emt 0:05:44]} c5 {[%emt 0:02:55]} 16. Nb5 {[%emt 0:09:13]} Ne4 {[%emt 0:04:42]} 17. cxd5 {[%emt 0:10:35]} exd5 {[%emt 0:01:09]} 18. Rc2 {[%emt 0:07:09]} (18. Bd3 $5 {[%cal Rd3e4]}) 18... Re8 {[%emt 0:03:29]} (18... cxd4 $11 19. Bxd4 Bxd4 20. Rxc8+ (20. Nfxd4 Rxc2 21. Qxc2 Ndc5 $11) (20. Nbxd4 Nc3 $17) (20. Rxd4 Rxc2 21. Qxc2 Qd8 $11) (20. exd4 Nf8 $11) 20... Qxc8 21. Nfxd4 Ndc5) 19. Nd2 $14 {[%emt 0:07:45]} Nxf2 $2 {[%emt 0:23:28] A mistake that costs the game.} 20. Kxf2 $18 {[%emt 0:00:17][%cal Bg1f2,Bf2e3,Be3d3,Bd3c3,Bc3b2,Bb2a2][%mdl 32]} Rxe3 {[%emt 0:00:06]} 21. Kxe3 {[%emt 0:25:23]} Qg3+ {[%emt 0:00:17] [#]} 22. Nf3 $1 {[%emt 0:00:58] And now Kd2 would win.} Bh6+ $2 {[%emt 0:03:49]} (22... Re8+ {is a better defense.} 23. Kd3 Qxg2) 23. Kd3 {[%emt 0:00:24]} Qf4 {[%emt 0:00:22]} (23... Re8 $142 24. Bc1 (24. Kc3 cxd4+ 25. Rxd4 Rc8+ 26. Bc4 Bg7 $16) 24... Bg7) 24. Bc1 {[%emt 0:00:49] White is clearly winning.} (24. Kc3 {is a self mate.} Qe3+ 25. Rd3 cxd4+ 26. Nfxd4 Rc8+) 24... Qe4+ {[%emt 0:08:30]} 25. Kc3 {[%emt 0:00:03]} Bg7 {[%emt 0:02:31]} 26. Kb2 {[%emt 0:00:11]} c4 {[%emt 0:00:28]} 27. Ka2 {[%emt 0:00:44] Weighted Error Value: White=0.09 (flawless) /Black=0.55} 1-0

[Event "5th Sharjah Masters 2022"]
[Site "Sharjah"]
[Date "2022.05.21"]
[Round "1.29"]
[White "Ganguly, Surya Shekhar"]
[Black "Msellek, Ilyass"]
[Result "1/2-1/2"]
[ECO "A13"]
[WhiteElo "2616"]
[BlackElo "2411"]
[Annotator "TA"]
[PlyCount "65"]
[EventDate "2022.05.21"]
[EventType "swiss"]
[EventCountry "UAE"]
[SourceTitle "playchess.com"]
[Source "ChessBase"]
[SourceQuality "1"]
[TimeControl "5400+30"]

{[%evp 21,65,40,35,36,41,37,43,38,36,37,27,23,27,17,25,23,35,24,31,39,38,40,47,38,47,0,38,0,45,0,0,0,0,0,0,0,0,0,0,0,0,0,0,4,20,-10]} 1. Nf3 {[%emt 0:00:17]} d5 {[%emt 0:00:38]} 2. e3 {[%emt 0:01:11]} Nf6 {[%emt 0:00:56]} 3. c4 {[%emt 0:00:08]} e6 {[%emt 0:00:19]} 4. Nc3 {[%emt 0:00:08]} Be7 {[%emt 0:02:11]} 5. b3 {[%emt 0:00:20]} O-O {[%emt 0:01:53]} 6. Bb2 {[%emt 0:00:06]} c5 {[%emt 0:04:08]} 7. cxd5 {[%emt 0:00:48]} exd5 {[%emt 0:05:21]} 8. d4 {[%emt 0:00:27]} Nc6 {[%emt 0:01:15]} 9. Be2 {[%emt 0:00:57]} cxd4 {[%emt 0:04:41]} 10. Nxd4 {[%emt 0:00:21]} Bd6 {[%emt 0:01:43]} 11. O-O {[%emt 0:03:28]} Re8 {[%emt 0:04:17]} 12. Ncb5 {[%emt 0:08:37] A13: English Opening: 1...e6.} Bb8 {[%emt 0:04:56]} 13. Rc1 {[%emt 0:01:41] [#]} a6 $146 {[%emt 0:03:37]} ({Predecessor:} 13... Bd7 14. g3 a6 15. Nxc6 bxc6 16. Nd4 Qb6 17. Qc2 Rc8 18. Nf5 Qd8 19. Rfd1 a5 {0-1 (36) Bocharov,D (2524)-Tay,J (2230) Chess.com INT 2020}) 14. Nxc6 {[%emt 0:13:18] White is slightly better.} bxc6 {[%emt 0:00:14][%cal Bb7c6,Bc6c5][%mdl 32]} 15. Nd4 {[%emt 0:00:17]} Qd6 {[%emt 0:02:29][%csl Gb8][%cal Rd6h2] [#]} 16. g3 {[%emt 0:01:02]} c5 {[%emt 0:03:06]} 17. Ba3 {[%emt 0:01:04]} Ne4 {[%emt 0:01:02]} 18. Bf3 {[%emt 0:03:06]} Bh3 {[%emt 0:23:36]} 19. Bxe4 {[%emt 0:04:18]} dxe4 {[%emt 0:02:37]} 20. Re1 {[%emt 0:18:33]} ({Much worse is} 20. Rxc5 Bxf1 21. Qxf1 Qd7 $15) 20... Qg6 {[%emt 0:05:56] Prevents Qh5.} 21. Rxc5 {[%emt 0:02:10]} Be5 {[%emt 0:00:31]} 22. Rc6 {[%emt 0:05:32]} Qg5 {[%emt 0:01:17]} 23. Rc5 {[%emt 0:10:10]} Qg6 $1 {[%emt 0:00:25]} 24. Rc6 {[%emt 0:05:46]} Qg5 {[%emt 0:00:09]} 25. f4 {[%emt 0:00:18]} exf3 $1 {[%emt 0:01:02] The position is equal.} 26. Nxf3 {[%emt 0:00:06]} Qh5 {[%emt 0:03:07]} 27. Nxe5 {[%emt 0:02:59]} Qxe5 {[%emt 0:00:08]} 28. Rc5 {[%emt 0:01:22] Against Qa5} Qf6 {[%emt 0:07:07]} ({But not} 28... Qe4 29. Qd5 $14) 29. Rh5 {[%emt 0:00:54]} Qe6 {[%emt 0:04:06] [#] ...Bg4 is the strong threat.} 30. Qd5 {[%emt 0:05:49]} Red8 {[%emt 0:03:47]} 31. Qxe6 {[%emt 0:03:18]} Bxe6 {[%emt 0:00:05]} 32. Ra5 {[%emt 0:00:44]} Rac8 {[%emt 0:01:52]} 33. Rc5 {[%emt 0:02:29] Weighted Error Value: White=0.07 (flawless) /Black=0.02 (flawless)} 1/2-1/2

[Event "5th Sharjah Masters 2022"]
[Site "Sharjah"]
[Date "2022.05.21"]
[Round "1.30"]
[White "Zawadzka, Jolanta"]
[Black "Hakobyan, Aram"]
[Result "1/2-1/2"]
[ECO "C47"]
[WhiteElo "2409"]
[BlackElo "2615"]
[Annotator "TA"]
[PlyCount "62"]
[EventDate "2022.05.21"]
[EventType "swiss"]
[EventCountry "UAE"]
[SourceTitle "playchess.com"]
[Source "ChessBase"]
[SourceQuality "1"]
[TimeControl "5400+30"]

{[%evp 17,62,0,0,0,3,0,13,15,18,7,13,7,22,31,12,3,13,0,10,-10,-3,-18,9,-15,-10,-20,-21,-15,-25,-37,-31,-40,-29,-34,0,-17,0,0,0,0,0,-18,-1,-3,2,4,0]} 1. e4 {[%emt 0:00:05]} e5 {[%emt 0:00:08]} 2. Nf3 {[%emt 0:00:08]} Nc6 {[%emt 0:00:04]} 3. Nc3 {[%emt 0:00:06]} Nf6 {[%emt 0:00:08]} 4. d4 {[%emt 0:00:06]} exd4 {[%emt 0:00:05]} 5. Nxd4 {[%emt 0:00:09]} Bb4 {[%emt 0:00:10]} 6. Nxc6 {[%emt 0:00:13]} bxc6 {[%emt 0:00:06]} 7. Bd3 {[%emt 0:00:10]} d5 {[%emt 0:00:17]} 8. exd5 {[%emt 0:00:15]} O-O {[%emt 0:00:24] seems to push 8...cxd5 aside.} 9. O-O {[%emt 0:00:17]} cxd5 {[%emt 0:00:56]} 10. h3 {[%emt 0:00:10] C47: Scotch Four Knights and Four Knights with 4 g3.} c6 {[%emt 0:00:51]} 11. Qf3 {[%emt 0:00:14]} Rb8 {[%emt 0:03:48]} 12. Bf4 {[%emt 0:02:05]} Bd6 {[%emt 0:00:37]} 13. b3 {[%emt 0:01:04]} Be6 {[%emt 0:04:11]} 14. Rfe1 {[%emt 0:06:32]} Rb4 {[%emt 0:04:07]} 15. Bxd6 {[%emt 0:05:59]} Qxd6 {[%emt 0:00:08]} 16. Qe3 {[%emt 0:01:19]} c5 {[%emt 0:09:44] [#]} 17. Na4 $146 {[%emt 0:12:39]} ({Predecessor:} 17. Rad1 Qc7 18. Na4 Nd7 19. c3 Rbb8 20. f4 g6 21. f5 gxf5 22. Qg5+ Kh8 23. Bxf5 {½-½ (35) Bida,M (2394)-Georgescu,T (2463) Arad 2016}) 17... Rc8 {[%emt 0:12:30]} 18. c3 {[%emt 0:04:28]} Rbb8 {[%emt 0:04:11]} 19. Rad1 {[%emt 0:01:04]} Qc6 {[%emt 0:04:20]} 20. Be2 {[%emt 0:08:46]} c4 {[%emt 0:08:35]} 21. Qxa7 {[%emt 0:12:38]} cxb3 {[%emt 0:00:37]} 22. axb3 {[%emt 0:01:57]} Rxb3 {[%emt 0:00:27] [#] Strongly threatening ...Ra8.} 23. Rb1 {[%emt 0:01:14]} Ra3 {[%emt 0:03:41]} ({Much weaker is} 23... Ra8 24. Qxa8+ Qxa8 25. Rxb3 $11) 24. Bb5 {[%emt 0:01:23]} Qd6 {[%emt 0:04:34]} 25. Qd4 {[%emt 0:05:13]} h6 {[%emt 0:06:45][%cal Oc8c4]} (25... Rc4 $5 {[%cal Rc4d4]} 26. Qe5 (26. Bxc4 Rxa4 27. Qb6 Qxb6 $17) 26... Qxe5 27. Rxe5 Rc8 $15) 26. Ra1 {[%emt 0:08:26] The position is equal.} Rxa1 {[%emt 0:03:13]} 27. Rxa1 {[%emt 0:00:04]} Ra8 {[%emt 0:03:39]} 28. Rb1 {[%emt 0:05:02]} Bf5 {[%emt 0:03:16]} 29. Rb4 {[%emt 0:00:47]} Ne4 {[%emt 0:03:15]} 30. Bf1 {[%emt 0:00:48]} Qc6 {[%emt 0:01:33]} 31. Nb6 {[%emt 0:06:21]} Ra5 {[%emt 0:04:59] Weighted Error Value: White=0.07 (flawless) /Black=0.07 (flawless)} 1/2-1/2